[Event "German-ch Blitz Women 2022"]
[Site "Magdeburg"]
[Date "2022.08.13"]
[Round "3.4"]
[White "Falke, Ornella"]
[Black "Skibbe, Diana"]
[Result "0-1"]
[ECO "A80"]
[WhiteElo "1912"]
[BlackElo "1943"]
[Annotator "TA"]
[PlyCount "37"]
[EventDate "2022.08.10"]
[EventType "tourn"]
[EventCountry "GER"]
[SourceTitle "playchess.com"]
[Source "ChessBase"]
[SourceQuality "1"]
[TimeControl "180+2"]

{[%evp 9,37,31,239,226,274,270,368,274,432,410,417,449,418,421,454,416,468,404,411,285,291,323,379,372,451,381,564,453,697,312]} 1. d4 {[%emt 0:00:02]} f5 {[%emt 0:00:01]} 2. Bg5 {[%emt 0:00:03]} h6 {[%emt 0:00:02]} 3. Bh4 {[%emt 0:00:24]} g5 {[%emt 0:00:02]} 4. e4 {[%emt 0:00:02]} Nf6 {[%emt 0:00:04]} 5. e5 {[%emt 0:00:18]} Ng4 $2 {[%emt 0:00:14]} ({Weaker is} 5... gxh4 6. exf6 h5 7. Be2 $16) (5... e6 $1 $14) 6. h3 $18 {[%emt 0:00:14][%cal Bh2h3,Bh3g4][%mdl 32] A80: Dutch Defence: Unusual White second moves.} gxh4 {[%emt 0:00:23]} 7. hxg4 {[%emt 0:00:01]} f4 {[%emt 0:00:27] [#]} 8. Bd3 $146 {[%emt 0:00:23][%cal Rd3g6] [#] White is winning.} ({Predecessor:} 8. Qd3 Rg8 9. Qh7 Rxg4 10. Be2 {1-0 (10) Schott,T (1527)-Cherner,L (1284) IECC email 1999}) 8... Bg7 {[%emt 0:00:21]} (8... d6 $142 9. Bg6+ Kd7) 9. Bg6+ {[%emt 0:00:05]} Kf8 {[%emt 0:00:01]} 10. Qd2 {[%emt 0:00:09]} Kg8 {[%emt 0:00:16]} 11. Qxf4 {[%emt 0:00:10][%csl Gg6][%cal Rf4f7]} Qf8 {[%emt 0:00:02] Against Qf7+} 12. Qe3 {[%emt 0:00:04]} Nc6 {[%emt 0:00:07]} 13. Nf3 {[%emt 0:00:06]} d6 {[%emt 0:00:15]} 14. exd6 {[%emt 0:00:42]} cxd6 {[%emt 0:00:23]} 15. Nc3 {[%emt 0:00:08]} ({Less strong is} 15. Rxh4 Qf6 16. Bf5 e6 $16) 15... e6 {[%emt 0:00:30]} 16. O-O-O {[%emt 0:00:06]} Qf6 {[%emt 0:00:13]} 17. Bh5 {[%emt 0:00:26]} Bd7 {[%emt 0:00:06]} (17... d5 {is a better defense.} 18. Be8 a6 19. Bxc6 bxc6 20. Rxh4 Ra7) 18. Nxh4 {[#] aiming for Ne4.} Qd8 (18... d5 $142 19. f4 Bf8) 19. Nb1 {[%mdl 32768] Black did not feel at home in the position after the opening.  Weighted Error Value: White=0.40/Black=0.97. Loss on time!?} (19. d5 $142 Bxc3 20. dxc6 Bxb2+ 21. Kxb2 bxc6 22. Kc1) 0-1

[Event "German-ch Blitz Women 2022"]
[Site "Magdeburg"]
[Date "2022.08.13"]
[Round "3.5"]
[White "Kosovska, Olena"]
[Black "Braun, Kristin"]
[Result "0-1"]
[ECO "B23"]
[WhiteElo "1831"]
[BlackElo "1897"]
[Annotator "NA RC COMBH"]
[PlyCount "85"]
[EventDate "2022.08.10"]
[EventType "tourn"]
[EventCountry "GER"]
[SourceTitle "playchess.com"]
[Source "ChessBase"]
[SourceQuality "1"]
[TimeControl "180+2"]

1. e4 {[%emt 0:00:01]} c5 {[%emt 0:00:00]} 2. Nc3 {[%emt 0:00:02]} g6 {[%emt 0:00:01]} 3. f4 {[%emt 0:00:01]} Bg7 {[%emt 0:00:01]} 4. Nf3 {[%emt 0:00:01]} Nc6 {[%emt 0:00:00]} 5. Bb5 {[%emt 0:00:01]} e6 {[%emt 0:00:02]} 6. d3 {[%emt 0:00:02]} Nge7 {[%emt 0:00:01]} 7. O-O {[%emt 0:00:02]} O-O {[%emt 0:00:02]} 8. Qe1 {[%emt 0:00:02]} d5 {[%emt 0:00:06]} 9. Bxc6 {[%emt 0:00:12]} Nxc6 {[%emt 0:00:01]} 10. e5 {[%emt 0:00:01]} a6 {[%emt 0:00:12]} 11. h3 {[%emt 0:00:02]} b5 {[%emt 0:00:10]} 12. Ne2 {[%emt 0:00:02]} f6 {[%emt 0:00:25]} 13. Ng3 {[%emt 0:00:15]} fxe5 {[%emt 0:00:25]} 14. fxe5 {[%emt 0:00:08]} Qc7 {[%emt 0:00:02]} 15. c3 {[%emt 0:00:38]} Nxe5 {[%emt 0:00:18]} 16. Nxe5 {[%emt 0:00:21]} Rxf1+ {[%emt 0:00:03]} 17. Nxf1 {[%emt 0:00:16]} Qxe5 {[%emt 0:00:07]} 18. Qf2 {[%emt 0:00:17]} d4 {[%emt 0:00:17]} 19. Qf3 {[%emt 0:00:08]} Qd5 {[%emt 0:00:13]} 20. Qxd5 exd5 21. Bd2 {[%emt 0:00:52]} dxc3 {[%emt 0:00:05]} 22. bxc3 {[%emt 0:00:01]} Bf5 {[%emt 0:00:03]} 23. Re1 {[%emt 0:00:08]} Kf7 {[%emt 0:00:14]} 24. Ne3 {[%emt 0:00:11]} d4 {[%emt 0:00:16]} 25. Nxf5 {[%emt 0:00:03]} gxf5 {[%emt 0:00:01]} 26. cxd4 {[%emt 0:00:01]} Bxd4+ {[%emt 0:00:01]} 27. Kh2 {[%emt 0:00:01]} Re8 {[%emt 0:00:02]} 28. Rf1 {[%emt 0:00:01]} Kg6 {[%emt 0:00:01]} 29. Kg3 {[%emt 0:00:02]} Re2 {[%emt 0:00:03]} 30. Bf4 {[%emt 0:00:05]} Rxa2 {[%emt 0:00:04]} 31. Re1 {[%emt 0:00:02]} Ra3 {[%emt 0:00:04]} 32. Re6+ {[%emt 0:00:01]} Kf7 {[%emt 0:00:01]} 33. Rh6 {[%emt 0:00:05]} Rxd3+ {[%emt 0:00:05]} 34. Kh4 {[%emt 0:00:01]} Bf2+ {[%emt 0:00:05]} 35. Kh5 {[%emt 0:00:02]} c4 {[%emt 0:00:11]} 36. Rxh7+ {[%emt 0:00:02]} Ke6 {[%emt 0:00:04]} 37. Rc7 {[%emt 0:00:01]} Kd5 {[%emt 0:00:03]} 38. Ra7 {[%emt 0:00:02]} c3 {[%emt 0:00:02]} 39. Rd7+ {[%emt 0:00:01]} Ke4 {[%emt 0:00:01]} 40. Rxd3 {[%emt 0:00:04]} Kxd3 {[%emt 0:00:00]} 41. Kg5 {[%emt 0:00:01]} Be3 {[%emt 0:00:00]} 42. Bxe3 {[%emt 0:00:00]} Kxe3 {[%emt 0:00:00]} 43. Kxf5 {[%emt 0:00:00]} 0-1

[Event "German-ch Blitz Women 2022"]
[Site "Magdeburg"]
[Date "2022.08.13"]
[Round "3.6"]
[White "Leveikina, Jevgenija"]
[Black "Grabowski, Petra"]
[Result "1-0"]
[ECO "D00"]
[WhiteElo "2061"]
[BlackElo "1643"]
[Annotator "NA RC"]
[PlyCount "91"]
[EventDate "2022.08.10"]
[EventType "tourn"]
[EventCountry "GER"]
[SourceTitle "playchess.com"]
[Source "ChessBase"]
[SourceQuality "1"]
[TimeControl "180+2"]

1. d4 d5 2. c3 Nf6 3. Nf3 Bf5 4. Bf4 e6 5. e3 Nbd7 6. Bd3 Bg6 7. Qc2 c5 8. Nbd2 Bxd3 9. Qxd3 Be7 10. O-O O-O 11. h3 Nh5 12. Bh2 c4 13. Qc2 b5 14. a3 Nb6 15. e4 dxe4 16. Nxe4 Nf6 17. Rfe1 Nxe4 18. Qxe4 Bd6 19. Bxd6 Qxd6 20. Ne5 Qd5 21. Qxd5 Nxd5 22. Nc6 a5 23. Ne5 Rfe8 24. g3 f6 25. Nd7 Re7 26. Nc5 Rae8 27. Rad1 Nc7 28. Ne4 Nd5 29. Nd6 Rb8 30. Kg2 Rb6 31. Nc8 Rbb7 32. Nxe7+ Rxe7 33. Ra1 e5 34. dxe5 Rxe5 35. Rxe5 fxe5 36. Rd1 Nf6 37. Rd8+ Kf7 38. Rb8 b4 39. axb4 axb4 40. Rxb4 Ne4 41. Rxc4 Nd6 42. Rc7+ Kf6 43. Rc6 Ke6 44. Kf3 Kd5 45. Rxd6+ Kxd6 46. Ke4 1-0

[Event "German-ch Blitz Women 2022"]
[Site "Magdeburg"]
[Date "2022.08.13"]
[Round "3.7"]
[White "Heil, Marina"]
[Black "Khrapko, Marharyta"]
[Result "0-1"]
[ECO "A25"]
[WhiteElo "1926"]
[BlackElo "2128"]
[Annotator "NA RC"]
[PlyCount "79"]
[EventDate "2022.08.10"]
[EventType "tourn"]
[EventCountry "GER"]
[SourceTitle "playchess.com"]
[Source "ChessBase"]
[SourceQuality "1"]
[TimeControl "180+2"]

1. c4 {[%emt 0:00:01]} e5 {[%emt 0:00:01]} 2. Nc3 {[%emt 0:00:02]} Nc6 {[%emt 0:00:01]} 3. g3 {[%emt 0:00:01]} Bc5 {[%emt 0:00:02]} 4. Bg2 {[%emt 0:00:03]} a6 {[%emt 0:00:01]} 5. d3 {[%emt 0:00:01]} d6 {[%emt 0:00:01]} 6. Be3 {[%emt 0:00:01]} Bxe3 7. fxe3 {[%emt 0:00:04]} Nf6 {[%emt 0:00:05]} 8. e4 {[%emt 0:00:04]} O-O {[%emt 0:00:04]} 9. Nf3 {[%emt 0:00:01]} Bg4 {[%emt 0:00:05]} 10. h3 {[%emt 0:00:16]} Be6 {[%emt 0:00:02]} 11. O-O {[%emt 0:00:02]} Qd7 {[%emt 0:00:02]} 12. Kh2 {[%emt 0:00:01]} Rab8 {[%emt 0:00:15]} 13. Ng5 {[%emt 0:00:05]} Ne8 {[%emt 0:00:23]} 14. Qd2 {[%emt 0:00:15]} h6 {[%emt 0:00:12]} 15. Nxe6 {[%emt 0:00:01]} Qxe6 {[%emt 0:00:07]} 16. Nd5 {[%emt 0:00:04]} b5 {[%emt 0:00:05]} 17. cxb5 {[%emt 0:00:21]} axb5 {[%emt 0:00:24]} 18. Rac1 {[%emt 0:00:03]} Nd8 {[%emt 0:00:17]} 19. b3 {[%emt 0:00:06]} c6 {[%emt 0:00:05]} 20. Nb4 {[%emt 0:00:06]} Qd7 {[%emt 0:00:06]} 21. Rc2 {[%emt 0:00:08]} Nc7 {[%emt 0:00:10]} 22. Rfc1 {[%emt 0:00:06]} c5 {[%emt 0:00:01]} 23. Rc3 {[%emt 0:00:21]} Nde6 {[%emt 0:00:17]} 24. Nd5 {[%emt 0:00:08]} Nxd5 {[%emt 0:00:05]} 25. exd5 {[%emt 0:00:02]} Nd4 {[%emt 0:00:06]} 26. e3 {[%emt 0:00:07]} Nf5 {[%emt 0:00:01]} 27. R3c2 {[%emt 0:00:05]} b4 {[%emt 0:00:03]} 28. Rf1 {[%emt 0:00:07]} Ne7 {[%emt 0:00:02]} 29. d4 {[%emt 0:00:08]} cxd4 {[%emt 0:00:20]} 30. exd4 {[%emt 0:00:01]} Ng6 {[%emt 0:00:01]} 31. dxe5 {[%emt 0:00:17]} Nxe5 {[%emt 0:00:01]} 32. Rfc1 {[%emt 0:00:08]} Qf5 {[%emt 0:00:07]} 33. Qd4 {[%emt 0:00:15]} Rbe8 {[%emt 0:00:07]} 34. Qxb4 {[%emt 0:00:06]} Qd3 {[%emt 0:00:08]} 35. Qxd6 {[%emt 0:00:10]} Nf3+ {[%emt 0:00:12]} 36. Bxf3 {[%emt 0:00:08]} Qxf3 {[%emt 0:00:01]} 37. Qc5 {[%emt 0:00:09]} Re2+ {[%emt 0:00:03]} 38. Rxe2 {[%emt 0:00:09]} Qxe2+ {[%emt 0:00:01]} 39. Kg1 {[%emt 0:00:04]} Qxa2 {[%emt 0:00:01]} 40. Qc4 0-1

[Event "German-ch Blitz Women 2022"]
[Site "Magdeburg"]
[Date "2022.08.13"]
[Round "3.8"]
[White "Fock, Sana"]
[Black "Daemering, Katrin"]
[Result "0-1"]
[ECO "B23"]
[WhiteElo "1807"]
[BlackElo "1965"]
[Annotator "TA"]
[PlyCount "50"]
[EventDate "2022.08.10"]
[EventType "tourn"]
[EventCountry "GER"]
[SourceTitle "playchess.com"]
[Source "ChessBase"]
[SourceQuality "1"]
[TimeControl "180+2"]

{[%evp 12,50,-6,-24,45,49,41,-68,-49,-50,-50,-39,-40,-39,-31,-53,-53,-138,-149,-181,-104,-88,-92,-584,-580,-576,-582,-578,-572,-572,-568,-626,-627,-628,-628,-752,-749,-929,-912,-1092,-1078]} 1. e4 {[%emt 0:00:01]} c5 {[%emt 0:00:01]} 2. Nc3 {[%emt 0:00:02]} Nc6 {[%emt 0:00:02]} 3. f4 {[%emt 0:00:01]} g6 {[%emt 0:00:01]} 4. Nf3 {[%emt 0:00:02]} Bg7 {[%emt 0:00:01]} 5. Bb5 {[%emt 0:00:02]} Nd4 {[%emt 0:00:02]} 6. O-O {[%emt 0:00:02]} e6 {[%emt 0:00:03]} 7. e5 {[%emt 0:00:09]} Ne7 {[%emt 0:00:09] B23: Closed Sicilian: Lines without g3.} (7... a6 $11 8. Bd3 f5) 8. Nxd4 $14 {[%emt 0:00:20]} cxd4 {[%emt 0:00:01]} 9. Ne2 {[%emt 0:00:01] [#]} (9. Ne4 $14) 9... Qb6 $146 {[%emt 0:00:10] Black is slightly better.} ({Predecessor:} 9... O-O 10. b3 d6 11. exd6 Qxd6 12. Bd3 b5 13. Qe1 Bb7 14. Rb1 b4 15. Ng3 f5 {½-½ (75) Gomez,J (1813)-Ramirez Buitrago,D (1881) Soacha 2021}) 10. Bd3 {[%emt 0:00:03]} d6 {[%emt 0:00:09]} 11. exd6 {[%emt 0:00:08]} Qxd6 {[%emt 0:00:01]} (11... Nd5 {with more complications.} 12. a3 Bd7 13. Qe1 Bb5) 12. a4 {[%emt 0:00:09]} O-O {[%emt 0:00:04]} 13. Kh1 {[%emt 0:00:04]} b6 {[%emt 0:00:09]} 14. c3 {[%emt 0:00:24]} (14. Ng3 $15) 14... Bb7 $17 {[%emt 0:00:11] ...dxc3 is the strong threat.} 15. Ng3 {[%emt 0:00:20]} dxc3 {[%emt 0:00:15]} (15... Rad8 $19 {Strongly threatening ...dxc3.} 16. c4 f5) 16. dxc3 {[%emt 0:00:03]} Rad8 $40 {[%emt 0:00:02][%mdl 128] Black is out for blood.} 17. Be2 {[%emt 0:00:18][%mdl 8192] Loses the game.} (17. Bc2 $17 {was the crucial defense.}) 17... Qc6 $1 $19 {[%emt 0:00:02][%csl Gb7,LRd1,LRg2][%cal Rc6g2] [#] Black is clearly winning.} 18. Bf3 {[%emt 0:00:05]} Rxd1 {[%emt 0:00:02]} 19. Bxc6 {[%emt 0:00:02]} Rxf1+ {[%emt 0:00:02]} 20. Nxf1 {[%emt 0:00:02]} Bxc6 {[%emt 0:00:02]} 21. Be3 {[%emt 0:00:19]} Rd8 {[%emt 0:00:02]} 22. a5 {[%emt 0:00:04]} Nf5 {[%emt 0:00:07]} 23. Bf2 {[%emt 0:00:05]} bxa5 {[%emt 0:00:10] And now ...Rb8 would win.} 24. Ne3 {[%emt 0:00:07]} Rd2 {[%emt 0:00:09][%csl LRb2,LRf2]} 25. Nxf5 {[%emt 0:00:02]} gxf5 {[%emt 0:00:03] Weighted Error Value: White=1.01/Black=0.16 (very precise)} 0-1

[Event "German-ch Blitz Women 2022"]
[Site "Magdeburg"]
[Date "2022.08.13"]
[Round "3.9"]
[White "Schuster, Rebekka"]
[Black "Muetsch, Annmarie"]
[Result "1-0"]
[ECO "B07"]
[WhiteElo "1815"]
[BlackElo "2249"]
[Annotator "TA"]
[PlyCount "104"]
[EventDate "2022.08.10"]
[EventType "tourn"]
[EventCountry "GER"]
[SourceTitle "playchess.com"]
[Source "ChessBase"]
[SourceQuality "1"]
[TimeControl "180+2"]

{[%evp 9,104,-14,0,-5,-2,0,0,-31,-25,-50,-36,-276,-270,-253,-281,-262,-147,-152,-145,-220,-216,-212,-223,-201,-219,-358,-208,-213,-214,-226,-170,-145,-139,-135,-96,-135,-146,-137,-133,-158,-137,-124,-106,-106,-103,-95,-87,-130,-127,-130,1,-168,0,0,0,0,0,0,0,-13,-15,-36,-10,-90,-51,-92,-85,-93,-77,-138,-138,-133,-137,-156,-116,-228,-190,-190,-183,-277,-275,-328,-323,-283,-280,-601,-555,-768,-777,-4884,-4520,-5286,-4674,-5286,-5110,-29983,-2208]} 1. e4 {[%emt 0:00:01]} d6 {[%emt 0:00:01]} 2. d4 {[%emt 0:00:01]} Nf6 {[%emt 0:00:01]} 3. Nc3 {[%emt 0:00:01]} e5 {[%emt 0:00:00]} 4. d5 {[%emt 0:00:28]} Be7 {[%emt 0:00:03]} 5. f3 {[%emt 0:00:10]} O-O {[%emt 0:00:03]} 6. Be3 {[%emt 0:00:00] B07: Pirc Defence: Miscellaneous Systems.} c6 {[%emt 0:00:02]} 7. Qd2 {[%emt 0:00:05]} cxd5 {[%emt 0:00:14]} 8. Nxd5 {[%emt 0:00:02] The position is equal.} Nxd5 {[%emt 0:00:04]} 9. Qxd5 {[%emt 0:00:04]} Nc6 {[%emt 0:00:04] [#]} (9... Nd7 $5 {[%cal Rd7f6]}) 10. Bc4 $146 {[%emt 0:00:27]} (10. Qd2 $15) ({Predecessor:} 10. Qd2 Be6 11. Bb5 Nd4 12. Bxd4 exd4 13. Ne2 Qb6 14. Nxd4 Bf6 15. Nxe6 fxe6 16. c4 {0-1 (36) Milher,A (2319)-De Anna,M Buenos Aires 2002}) 10... Be6 $19 {[%emt 0:00:11]} 11. Qd3 {[%emt 0:00:01]} Nb4 {[%emt 0:00:10]} 12. Qb3 {[%emt 0:00:38]} Nxc2+ {[%emt 0:00:18]} 13. Qxc2 $17 {[%emt 0:00:19] And now Bb3 would win.} Rc8 $1 {[%emt 0:00:00]} 14. b3 {[%emt 0:00:01] [#]} (14. Ne2 $17) 14... b5 $1 $19 {[%emt 0:00:01]} 15. Ne2 {[%emt 0:00:21]} bxc4 {[%emt 0:00:03]} 16. bxc4 {[%emt 0:00:04]} Rxc4 {[%emt 0:00:08]} 17. Qd2 {[%emt 0:00:12]} (17. Qd3 {was called for.}) 17... Qc7 {[%emt 0:00:11]} (17... d5 $142 18. O-O dxe4 19. Qxd8 Rxd8 20. Bxa7 exf3 21. gxf3 Ra8) 18. Rc1 {[%emt 0:00:25]} Rxc1+ {[%emt 0:00:09]} 19. Nxc1 {[%emt 0:00:05]} f5 {[%emt 0:00:21]} 20. exf5 {[%emt 0:00:04]} Rxf5 {[%emt 0:00:03]} 21. O-O {[%emt 0:00:03]} d5 {[%emt 0:00:04][%cal Bd6d5,Bd5d4][%mdl 32]} 22. Nb3 {[%emt 0:00:06]} d4 {[%emt 0:00:12]} 23. Bf2 {[%emt 0:00:02]} Rf8 {[%emt 0:00:14]} 24. Re1 {[%emt 0:00:04]} Bxb3 {[%emt 0:00:45]} 25. axb3 {[%emt 0:00:00]} Bd6 {[%emt 0:00:10]} 26. Rc1 {[%emt 0:00:03]} Qb7 {[%emt 0:00:04]} 27. Qa2 {[%emt 0:00:03]} Kh8 {[%emt 0:00:03]} 28. Rb1 {[%emt 0:00:04]} d3 {[%emt 0:00:03]} 29. Rd1 {[%emt 0:00:01]} Qb5 {[%emt 0:00:09]} (29... e4 $17 {Strongly threatening ...Qd5.} 30. Qa4 Rd8) 30. Qd2 $2 {[%emt 0:00:01]} (30. Qa4 $1 $11 Qxa4 31. bxa4) 30... Qxb3 $2 {[%emt 0:00:03]} ({Better is} 30... e4 $1 $19 31. fxe4 Rd8 32. Bxa7 Qxb3) 31. Qxd3 $11 {[%emt 0:00:02]} Qxd3 {[%emt 0:00:01]} 32. Rxd3 $19 {[%emt 0:00:00][%mdl 4096] Endgame KRB-KRB} Bb8 {[%emt 0:00:03]} 33. Rd7 {[%emt 0:00:02]} a5 {[%emt 0:00:02]} 34. Be1 {[%emt 0:00:01]} a4 {[%emt 0:00:03]} 35. Bb4 {[%emt 0:00:01]} Re8 {[%emt 0:00:01]} 36. Rd3 {[%emt 0:00:03]} (36. Kf2 $11 {remains equal.}) 36... Bc7 {[%emt 0:00:04] White is now going downhill.} 37. Ra3 Ra8 {[%emt 0:00:01]} 38. Kf2 {[%emt 0:00:02]} Kg8 {[%emt 0:00:02]} 39. Ke2 {[%emt 0:00:01] [#]} (39. Ke3 $142) 39... Kf7 $1 $17 {[%emt 0:00:01]} 40. Kd3 {[%emt 0:00:00]} Ke6 {[%emt 0:00:00]} 41. Ke4 {[%emt 0:00:01]} Bb6 {[%emt 0:00:05]} 42. Bc3 {[%emt 0:00:02]} (42. Ra2 $17) 42... Bc5 $19 {[%emt 0:00:02]} 43. Ra1 {[%emt 0:00:01]} Bd6 {[%emt 0:00:01]} 44. g3 {[%emt 0:00:03]} (44. Kd3 $142) 44... a3 {[%emt 0:00:01]} 45. Ra2 {[%emt 0:00:02]} Ra4+ {[%emt 0:00:01]} 46. Kd3 {[%emt 0:00:02]} Kd5 {[%emt 0:00:01]} 47. Bd2 $2 {[%emt 0:00:03]} (47. Rd2) 47... Rd4+ {[%emt 0:00:02]} 48. Kc2 {[%emt 0:00:02]} Kc4 {[%emt 0:00:02] aiming for ...Rd3.} 49. Bc3 {[%emt 0:00:05]} Rd3 {[%emt 0:00:01]} 50. Be1 {[%emt 0:00:05]} Rxf3 {[%emt 0:00:02]} 51. Kd1 {[%emt 0:00:06]} Kb3 {[%emt 0:00:02]} 52. Re2 {[%emt 0:00:02]} a2 {[%emt 0:00:01][%mdl 32768] Weighted Error Value: White=0.99/Black=0.24 (precise) . Loss on time!?} (52... Rd3+ $142 53. Kc1 Bc5 54. g4 Bd4 55. Rd2 Be3 56. Kd1 Bxd2 57. Ke2 Kc2 58. Bg3 a2 59. Bxe5 Bc3 60. Bxc3 Kxc3 61. h4 a1=Q 62. Kf2 Qd1 63. h5 Qc2+ 64. Kg1 Rd1#) 1-0

[Event "German-ch Blitz Women 2022"]
[Site "Magdeburg"]
[Date "2022.08.13"]
[Round "3.10"]
[White "Zschischang, Marine"]
[Black "Zhou, Lepu Coco"]
[Result "0-1"]
[ECO "D27"]
[WhiteElo "2083"]
[BlackElo "1986"]
[Annotator "NA RC"]
[PlyCount "63"]
[EventDate "2022.08.10"]
[EventType "tourn"]
[EventCountry "GER"]
[SourceTitle "playchess.com"]
[Source "ChessBase"]
[SourceQuality "1"]
[TimeControl "180+2"]

1. d4 {[%emt 0:00:00]} d5 {[%emt 0:00:01]} 2. c4 {[%emt 0:00:01]} dxc4 {[%emt 0:00:01]} 3. e3 {[%emt 0:00:01]} Nf6 {[%emt 0:00:03]} 4. Bxc4 e6 5. Nf3 {[%emt 0:00:02]} a6 {[%emt 0:00:01]} 6. O-O {[%emt 0:00:06]} c5 {[%emt 0:00:01]} 7. a4 {[%emt 0:00:06]} Nc6 {[%emt 0:00:04]} 8. Nc3 {[%emt 0:00:06]} cxd4 {[%emt 0:00:06]} 9. exd4 {[%emt 0:00:02]} Be7 {[%emt 0:00:01]} 10. Re1 {[%emt 0:00:03]} O-O {[%emt 0:00:08]} 11. Bb3 {[%emt 0:00:11]} Nb4 {[%emt 0:00:20]} 12. Ne5 {[%emt 0:00:10]} Nbd5 {[%emt 0:00:03]} 13. Bg5 {[%emt 0:00:19]} h6 {[%emt 0:00:15]} 14. Bh4 {[%emt 0:00:02]} Nxc3 {[%emt 0:00:13]} 15. bxc3 {[%emt 0:00:01]} Nd5 {[%emt 0:00:07]} 16. Bxe7 {[%emt 0:00:13]} Nxe7 {[%emt 0:00:02]} 17. Qd3 {[%emt 0:00:09]} Nf5 {[%emt 0:00:15]} 18. Bc2 {[%emt 0:00:11]} g6 {[%emt 0:00:34]} 19. g4 {[%emt 0:00:18]} Nh4 {[%emt 0:00:06]} 20. f4 {[%emt 0:00:30]} b6 {[%emt 0:00:07]} 21. Qe4 {[%emt 0:00:09]} Rb8 {[%emt 0:00:22]} 22. Qe3 {[%emt 0:00:40]} Bb7 {[%emt 0:00:05]} 23. Be4 {[%emt 0:00:01]} Bxe4 {[%emt 0:00:09]} 24. Qxe4 {[%emt 0:00:02]} Qc7 {[%emt 0:00:06]} 25. Re3 {[%emt 0:00:02]} f5 {[%emt 0:00:09]} 26. Qc2 {[%emt 0:00:09]} g5 {[%emt 0:00:17]} 27. fxg5 {[%emt 0:00:05]} hxg5 {[%emt 0:00:01]} 28. Qe2 {[%emt 0:00:10]} f4 {[%emt 0:00:07]} 29. Rh3 {[%emt 0:00:06]} Qb7 {[%emt 0:00:04]} 30. Re1 {[%emt 0:00:04]} f3 {[%emt 0:00:04]} 31. Qe4 f2+ 32. Kf1 0-1

[Event "German-ch Blitz Women 2022"]
[Site "Magdeburg"]
[Date "2022.08.13"]
[Round "3.11"]
[White "Stärk, Elisa"]
[Black "Nikolaeva, Mariya A"]
[Result "0-1"]
[ECO "E98"]
[WhiteElo "1950"]
[BlackElo "1309"]
[Annotator "TA"]
[PlyCount "69"]
[EventDate "2022.08.10"]
[EventType "tourn"]
[EventCountry "GER"]
[SourceTitle "playchess.com"]
[Source "ChessBase"]
[SourceQuality "1"]
[TimeControl "180+2"]

{[%evp 23,69,29,37,30,41,41,43,40,63,74,68,75,60,50,212,66,149,71,117,82,104,70,53,34,8,-31,166,142,359,84,97,54,55,56,80,0,77,-689,-675,-2502,-1806,-1780,-1721,-29991,-29991,-29991,-572,-437]} 1. c4 {[%emt 0:00:01]} Nf6 {[%emt 0:00:01]} 2. Nc3 {[%emt 0:00:01]} g6 {[%emt 0:00:01]} 3. d4 {[%emt 0:00:01]} Bg7 {[%emt 0:00:01]} 4. e4 {[%emt 0:00:01]} d6 {[%emt 0:00:01]} 5. Nf3 {[%emt 0:00:01][%cal Bg1f3,Bf3e1,Be1d3][%mdl 32]} O-O {[%emt 0:00:01]} 6. Be2 {[%emt 0:00:01]} e5 {[%emt 0:00:05]} 7. O-O {[%emt 0:00:01]} Nc6 {[%emt 0:00:01]} 8. d5 {[%emt 0:00:01]} Ne7 {[%emt 0:00:01]} 9. Ne1 {[%emt 0:00:01]} Nd7 {[%emt 0:00:02]} 10. Nd3 {[%emt 0:00:01]} f5 {[%emt 0:00:03]} 11. Bd2 {[%emt 0:00:01]} f4 {[%emt 0:00:01]} 12. Bg4 {[%emt 0:00:01]} h5 {[%emt 0:00:05]} 13. Be6+ {[%emt 0:00:01] E98: King's Indian: Classical Main Line: 9 Ne1.} Kh7 {[%emt 0:00:02]} 14. f3 {[%emt 0:00:02]} g5 {[%emt 0:00:09] [#]} 15. a4 $146 {[%emt 0:00:10] White is slightly better.} ({Predecessor:} 15. Rc1 Rf6 16. Be1 Rxe6 17. dxe6 Nf6 18. Nxe5 Bxe6 19. Nd3 Bxc4 20. h4 g4 21. b3 {1-0 (32) Batsiashvili,N (2467)-Yanayt,E (2173) Chess.com INT 2020}) 15... a5 {[%emt 0:00:09]} 16. Nb5 {[%emt 0:00:03]} Nc5 {[%emt 0:00:13]} 17. Nxc5 {[%emt 0:00:04]} dxc5 {[%emt 0:00:03]} 18. Bxc8 {[%emt 0:00:13]} (18. Bc3 {looks sharper.} b6 19. Nxc7 Qxc7 20. d6) 18... Rxc8 {[%emt 0:00:02]} ({Better is} 18... Nxc8 $14 19. Bc3 Nd6) 19. Bc3 {[%emt 0:00:06]} ({Only move:} 19. Bxa5 $18 b6 20. Bc3) 19... Ng6 {[%emt 0:00:14]} ({Black should play} 19... b6 $14) 20. Qc2 {[%emt 0:00:03]} (20. Bxa5 $142 {Strongly threatening d6.} Qd7 21. b3) 20... Rf7 {[%emt 0:00:15]} ({Black should try} 20... b6) 21. Rad1 {[%emt 0:00:03]} g4 {[%emt 0:00:11]} 22. fxg4 {[%emt 0:00:18]} hxg4 {[%emt 0:00:05]} 23. d6 {[%emt 0:00:07]} (23. Bxa5 $5 {[%cal Rd5d6]} b6 24. Bd2 $16) 23... c6 {[%emt 0:00:06]} 24. Nc7 {[%emt 0:00:09] [#] Black must now prevent Ne6.} (24. d7 $5 Rxd7 {[#]} 25. Bxa5 $1 Qxa5 26. Rxd7 cxb5 27. cxb5 $14 (27. axb5 Rc7 $11)) 24... Rd7 $2 {[%emt 0:00:46]} (24... Qd7 $1 $15 {stays ahead.}) 25. Ne6 $18 {[%emt 0:00:07]} Qe8 {[%emt 0:00:08]} (25... Qf6 $16 26. Nxc5 Rxd6) 26. Nxg7 $2 {[%emt 0:00:07]} (26. Nxc5 $18 {and the rest is easy. Hoping for h3.} Nf8 27. Nxd7 Nxd7 28. Bxa5) 26... Kxg7 $16 {[%emt 0:00:02]} 27. Bxa5 {[%emt 0:00:09]} Qe6 {[%emt 0:00:05]} 28. Bb6 {[%emt 0:00:16]} Rh8 $1 {[%emt 0:00:28]} 29. Qd3 {[%emt 0:00:19]} (29. Bxc5 $16 Nf8 30. Rd3) 29... f3 {[%emt 0:00:25]} (29... Nf8 $11) 30. gxf3 $2 {[%emt 0:00:19][%mdl 8192]} (30. g3 $16) 30... Nf4 $19 {[%emt 0:00:01] ( -> ...g3)} 31. Qe3 {[%emt 0:00:24]} g3 {[%emt 0:00:12][%cal Bg4g3,Bg3h2][%mdl 32]} 32. Rd2 {[%emt 0:00:35]} Qh3 {[%emt 0:00:01][%cal Rg3h2]} 33. Rfd1 {[%emt 0:00:17]} gxh2+ {[%emt 0:00:02]} 34. Kh1 {[%emt 0:00:02]} Qg3 {[%emt 0:00:03]} (34... Kg8 $142 35. Bd8 Rg7 36. Bh4 Rxh4 37. d7 Rg1+ 38. Rxg1+ hxg1=Q+ 39. Kxg1 Qg3+ 40. Kf1 Rh1+ 41. Qg1 Rxg1#) 35. Bxc5 {Weighted Error Value: White=1.24/Black=1.01} 0-1